bitfinex/quotes_ETHUSD_20240810
["timestamp","ask_amount","ask_price","bid_price","bid_amount"]
[1723290442645,1.89177,2643.1,2643.0,0.17768726]
[1723290442881,1.89177,2643.1,2642.4,2.3375]
[1723290442882,1.89197,2642.8,2642.4,2.3375]
[1723290443072,3.78396,2642.8,2642.4,2.3375]
[1723290443389,1.89205,2642.7,2642.4,2.3375]
[1723290443555,3.78397,2642.8,2642.4,2.3375]
[1723290443997,1.89197,2642.8,2642.4,2.3375]
[1723290444494,1.892,2642.7,2642.4,2.3375]
[1723290444988,1.892,2642.7,2641.8,2.3375]
[1723290444989,1.89255,2642.0,2641.8,2.3375]
[1723290445282,1.89265,2641.8,2641.3,2.3375]
[1723290445583,1.89273,2641.7,2641.3,2.3375]
[1723290445811,1.89277,2641.7,2641.3,2.3375]
[1723290445961,1.89292,2641.5,2641.3,2.3375]
[1723290446285,1.89293,2641.4,2640.9,2.3375]
[1723290446652,2.4493,2642.4,2640.9,2.3375]
[1723290446850,2.4493,2642.4,2641.4,4.23043]
[1723290446851,1.89248,2642.1,2641.4,4.23043]
[1723290447064,1.89248,2642.1,2641.4,4.23038]
[1723290447283,1.89248,2642.1,2641.5,1.96850506]
[1723290447483,1.89248,2642.1,2641.5,0.07570506]
[1723290447684,2.381728,2642.1,2641.5,0.07570506]
[1723290447883,1.89248,2642.1,2641.5,0.07570506]
[1723290448059,3.78497,2642.1,2641.5,0.07570506]
[1723290448786,1.89248,2642.1,2641.5,0.07570506]
[1723290449960,3.78498,2642.1,2641.5,0.07570506]
[1723290450472,2.570978,2642.1,2641.5,0.07570506]
[1723290451103,1.89237,2642.2,2641.8,2.4482]
[1723290451394,1.89243,2642.1,2641.8,2.4482]
[1723290451761,3.0,2642.3,2641.5,2.4482]
[1723290452001,1.89263,2641.9,2641.3,2.4482]
[1723290452307,1.89286,2641.5,2641.0,2.4482]
[1723290453173,1.89276,2641.7,2641.0,2.4482]
[1723290453374,1.89276,2641.7,2641.1,0.24482]
[1723290454166,3.0,2642.2,2641.4,2.4482]
[1723290454384,1.89257,2642.0,2641.4,2.4482]
[1723290454696,1.89277,2641.7,2641.4,2.4482]
[1723290455104,5.339,2642.0,2641.4,2.4482]
[1723290455105,1.8928,2641.6,2641.4,2.4482]
[1723290455301,5.339,2642.0,2640.8,4.59731]
[1723290455302,1.89307,2641.2,2640.9,2.4482]
[1723290455803,1.89294,2641.4,2640.9,2.4482]
[1723290455959,1.89281,2641.6,2640.9,2.4482]
[1723290455960,1.89281,2641.6,2641.0,1.89321]
[1723290456165,1.89286,2641.5,2640.9,4.34148]
[1723290456460,1.89298,2641.4,2640.9,3.152748]
[1723290456684,1.89298,2641.4,2640.9,2.4482]
[1723290457499,1.89298,2641.4,2640.9,4.34148]
[1723290457699,1.89298,2641.4,2640.9,2.4482]
[1723290457916,3.78597,2641.4,2640.9,2.4482]
[1723290458120,1.89298,2641.4,2640.9,2.4482]
[1723290458498,1.89315,2641.1,2640.9,2.4482]
[1723290458722,1.89312,2641.2,2640.9,2.4482]
[1723290459102,1.89315,2641.1,2640.9,2.4482]
[1723290459702,3.78625,2641.2,2640.9,2.4482]
[1723290460188,1.89312,2641.2,2640.9,2.4482]
[1723290460889,1.89327,2641.0,2640.5,5.1522]
[1723290461086,1.89327,2641.0,2640.5,2.4482]
[1723290461321,3.78683,2640.8,2640.5,2.4482]
[1723290461526,4.165513,2640.8,2640.6,0.18135328]
[1723290461700,3.78683,2640.8,2640.6,0.18135328]
[1723290461901,1.89341,2640.8,2640.6,0.18135328]
[1723290463011,3.78684,2640.8,2640.6,0.18135328]
[1723290463187,1.89341,2640.8,2640.6,0.18135328]
[1723290464396,3.78652,2641.0,2640.6,0.18135328]
[1723290464592,1.8931,2641.2,2640.6,2.41350417]
[1723290464816,1.89316,2641.1,2640.6,0.52004417]
[1723290465401,1.89316,2641.1,2640.6,0.44430861]
[1723290466519,1.89323,2641.0,2640.6,0.18135328]
[1723290466919,1.89334,2640.9,2640.6,0.18135328]
[1723290467834,1.89337,2640.8,2640.6,0.18135328]
[1723290469003,1.89343,2640.7,2640.6,0.18135328]
[1723290469197,3.78686,2640.7,2640.6,0.18135328]
[1723290469399,3.78686,2640.7,2640.3,2.4588]
[1723290469400,1.89355,2640.6,2640.3,2.4588]
[1723290470716,0.378686,2640.7,2639.9,2.704]
[1723290470905,1.89352,2640.6,2640.0,2.4588]
[1723290471105,1.89365,2640.4,2640.0,2.4588]
[1723290472418,1.89365,2640.4,2639.8,3.78806]
[1723290472419,3.78778,2640.1,2639.5,4.35305]
[1723290472627,3.78778,2640.1,2639.5,3.164505]
[1723290472628,1.89394,2640.0,2639.5,3.164505]
[1723290474007,1.89402,2639.9,2639.5,2.4588]
[1723290476431,1.89408,2639.8,2639.6,0.18293675]
[1723290477341,1.89415,2639.7,2639.6,0.18293675]
[1723290477552,1.89402,2639.9,2639.6,0.18293675]
[1723290477707,1.8939,2640.1,2639.4,3.78866]
[1723290478040,3.78782,2640.1,2639.7,0.18286865]
[1723290478357,1.89394,2640.0,2639.4,4.475056]
[1723290478546,1.89394,2640.0,2639.8,0.18280056]
[1723290478850,1.89394,2640.0,2639.9,0.18273247]
[1723290479147,1.89394,2640.0,2639.4,1.89431]
[1723290479350,1.89394,2640.0,2639.9,0.18273247]
[1723290479650,1.89387,2640.1,2639.9,0.18273247]
[1723290479851,4.89384,2640.2,2639.7,2.4588]
[1723290480058,5.572597,2640.2,2640.0,0.18323166]
[1723290480258,5.572597,2640.2,2639.7,2.4588]
[1723290480434,5.572597,2640.2,2640.1,0.18316358]
[1723290480629,5.572597,2640.2,2639.7,2.4588]
[1723290480630,1.89388,2640.1,2639.7,2.4588]
[1723290481228,3.678757,2640.2,2639.7,2.4588]
[1723290481758,5.572587,2640.2,2639.7,2.4588]
[1723290482260,7.466437,2640.2,2639.7,2.4588]
[1723290482471,1.89387,2640.1,2639.7,2.4588]
[1723290482653,1.89396,2640.0,2639.5,2.4588]
[1723290482840,1.89401,2639.9,2639.5,2.4588]
[1723290483039,1.89401,2639.9,2639.3,24.7228]
[1723290483248,1.89396,2640.0,2639.3,24.7228]
[1723290483562,1.89396,2640.0,2639.4,1.89432]
[1723290484841,0.7466437,2640.1,2639.3,22.0188]
[1723290485430,1.89422,2639.7,2639.3,22.0188]
[1723290485847,1.89423,2639.6,2639.3,19.56]
[1723290486027,1.89423,2639.6,2639.1,22.0188]
[1723290486228,1.89422,2639.7,2639.1,22.0188]
[1723290486527,1.89424,2639.6,2639.1,22.0188]
[1723290486732,1.89422,2639.7,2639.1,22.0188]
[1723290486979,1.89422,2639.7,2639.1,23.91334]
[1723290487479,1.89422,2639.7,2639.2,1.8945]
[1723290488539,1.89422,2639.7,2639.1,23.91337]
[1723290489263,1.89422,2639.7,2639.2,1.8945]
[1723290490071,2.48764196,2639.9,2639.3,1.89442]
[1723290490271,2.48764196,2639.9,2639.4,1.89435]
[1723290491250,2.48764196,2639.9,2639.5,0.18386165]
[1723290492970,4.38170196,2639.9,2639.5,0.18386165]
[1723290493170,4.52658457,2639.9,2639.2,3.78895]
[1723290493384,4.52658457,2639.9,2639.3,0.18399788]
[1723290493675,2.63252457,2639.9,2639.3,2.07842788]
[1723290494371,4.52659457,2639.9,2639.3,0.18399788]
[1723290494683,1.89409,2639.8,2639.3,0.18399788]
[1723290494890,1.89409,2639.8,2639.2,1.89445]
[1723290495091,2.57240146,2639.8,2639.4,0.18394134]
[1723290495301,2.57240146,2639.8,2639.2,1.89445]
[1723290495502,2.57240146,2639.8,2639.5,0.18387323]
[1723290495675,2.57240146,2639.8,2639.2,1.89445]
[1723290495876,2.57240146,2639.8,2639.6,0.18380513]
[1723290496069,2.57240146,2639.8,2639.2,1.89445]
[1723290496398,3.7881,2639.9,2639.4,2.3692]
[1723290496591,1.89404,2639.9,2639.4,2.3692]
[1723290496777,1.8941,2639.8,2639.5,0.18387323]
[1723290497689,1.89404,2639.9,2639.5,0.18387323]
[1723290498199,3.7881,2639.9,2639.5,0.18387323]
[1723290498762,1.89408,2639.8,2639.5,0.18387323]
[1723290499398,1.89415,2639.7,2639.5,0.18387323]
[1723290499705,1.89415,2639.7,2639.2,1.89445]
[1723290499904,1.89415,2639.7,2639.6,0.18380513]
[1723290500207,2.57933437,2639.9,2639.6,0.18380513]
[1723290500509,2.57933437,2639.9,2639.5,2.3692]
[1723290500717,1.89404,2639.9,2639.7,0.18373703]
[1723290501001,1.89404,2639.9,2639.8,0.18366894]
[1723290501211,1.89404,2639.9,2639.5,2.3692]
[1723290501361,1.89404,2639.9,2639.8,0.18364577]
[1723290501562,2.34749837,2639.9,2639.5,2.3692]
[1723290501758,2.34749837,2639.9,2639.6,0.18378196]
[1723290502226,4.24156837,2639.9,2639.6,0.18378196]
[1723290502423,4.24156837,2639.9,2639.3,1.89443]
[1723290502723,4.24156837,2639.9,2639.7,0.18371386]
[1723290502919,0.42415684,2639.8,2639.3,1.89443]
[1723290503078,3.78811,2639.9,2639.8,0.18364577]
[1723290503079,1.89404,2639.9,2639.8,0.18364577]
[1723290503280,1.89404,2639.9,2639.3,1.89443]
[1723290503510,1.89404,2639.9,2639.8,0.18364577]
[1723290503711,1.89404,2639.9,2639.3,1.89443]
[1723290503917,1.89404,2639.9,2639.8,0.18365735]
[1723290504080,2.34750137,2639.9,2639.3,1.89443]
[1723290504415,4.21233,2639.8,2639.2,2.3692]
[1723290504720,1.89416,2639.7,2639.4,0.18394713]
[1723290505028,1.89416,2639.7,2639.5,0.18387902]
[1723290505319,1.89416,2639.7,2639.2,2.3692]
[1723290505815,1.89416,2639.7,2639.3,0.18399787]
[1723290506021,1.89416,2639.7,2639.2,4.26369]
[1723290506225,2.3182,2639.8,2639.4,0.18392976]
[1723290506377,0.7466437,2640.1,2639.5,1.89427]
[1723290506378,2.6405437,2640.1,2639.5,1.89427]
[1723290506578,1.8939,2640.1,2639.6,0.18379355]
[1723290506805,1.8939,2640.1,2639.6,0.2595545]
[1723290507011,1.8939,2640.1,2639.6,0.18379355]
[1723290507317,1.89402,2639.9,2639.6,0.18379355]
[1723290507517,3.78783,2640.1,2639.6,0.18379355]
[1723290507836,2.804503,2640.1,2639.7,0.18372545]
[1723290507981,2.804503,2640.1,2639.4,1.89436]
[1723290508182,1.89398,2640.0,2639.5,0.18386165]
[1723290509507,4.24885,2639.9,2639.5,0.18386165]
[1723290509707,2.318965,2639.8,2639.5,0.18386165]
[1723290509895,0.424885,2639.8,2639.3,4.26362]
[1723290510077,4.24885,2639.9,2639.6,0.18379355]
[1723290510313,4.24885,2639.9,2639.3,4.26362]
[1723290510486,4.24885,2639.9,2639.7,0.18372545]
[1723290510688,4.24885,2639.9,2639.3,4.26362]
[1723290510911,4.24885,2639.9,2639.8,0.18365735]
[1723290511107,4.9541853,2639.9,2639.3,6.15801]
[1723290511307,1.89405,2639.9,2639.8,0.18365735]
[1723290511529,1.89405,2639.9,2639.3,4.26359]
[1723290511679,1.89405,2639.9,2639.8,0.18365735]
[1723290511885,1.89405,2639.9,2639.3,4.26359]
[1723290512225,1.89405,2639.9,2639.4,1.89436]
[1723290512628,1.89405,2639.9,2639.4,2.07828976]
[1723290513006,1.89405,2639.9,2639.4,0.18392976]
[1723290513992,1.89394,2640.0,2639.4,2.07826976]
[1723290514389,5.159303,2640.1,2639.4,2.07826976]
[1723290514390,1.89402,2639.9,2639.4,0.18392976]
[1723290515800,1.89402,2639.9,2639.4,2.07825976]
[1723290516407,2.7098903,2640.0,2639.4,2.07825976]
[1723290517495,1.8939,2640.1,2639.6,2.3976]
[1723290517732,1.8939,2640.1,2639.6,3.5276]
[1723290517904,1.8939,2640.1,2639.7,0.18382968]
[1723290518794,3.78782,2640.1,2639.7,0.18382968]
[1723290520135,1.89395,2640.0,2639.7,0.18382968]
[1723290522417,2.808162,2640.1,2639.7,0.18382968]
[1723290522640,0.914262,2640.1,2639.7,0.18382968]
[1723290522821,1.89405,2639.9,2639.7,0.18382968]
[1723290523211,1.89405,2639.9,2639.8,0.18376159]
[1723290523527,1.89405,2639.9,2639.4,1.13]
[1723290524234,1.89405,2639.9,2639.5,0.18396588]
[1723290527943,1.89405,2639.9,2639.4,1.90714388]
[1723290528246,1.89405,2639.9,2639.6,0.17777137]
[1723290528496,1.89405,2639.9,2639.5,0.17783948]
[1723290528657,1.89405,2639.9,2639.4,1.90714388]
[1723290528948,2.808162,2640.1,2639.6,0.17777137]
[1723290529159,2.4747562,2640.0,2639.6,1.13]
[1723290529354,2.4747562,2640.0,2639.7,0.17770327]
[1723290530712,3.0,2640.2,2639.8,2.4664]
[1723290530956,0.59358483,2640.4,2639.8,2.4664]
[1723290530957,2.48723483,2640.4,2640.0,1.13]
[1723290531126,1.89365,2640.4,2640.0,1.13]
[1723290531462,1.89365,2640.4,2640.1,0.1773846]
[1723290531665,1.89379,2640.2,2640.1,0.1773846]
[1723290531962,2.272534,2640.2,2639.8,3.5964]
[1723290532157,1.89379,2640.2,2640.1,0.1773846]
[1723290532612,1.89379,2640.2,2639.8,3.5964]
[1723290532762,1.89379,2640.2,2640.1,0.1773846]
[1723290532965,1.89379,2640.2,2639.8,3.5964]
[1723290533163,1.89379,2640.2,2640.1,0.1773846]
[1723290533362,1.89379,2640.2,2639.8,3.5964]
[1723290533588,1.89379,2640.2,2640.1,0.1773846]
[1723290533752,2.272534,2640.2,2640.1,0.1773846]
[1723290533952,2.272534,2640.2,2639.8,3.5964]
[1723290534168,2.272534,2640.2,2640.1,0.1773846]
[1723290534169,1.89379,2640.2,2640.1,0.1773846]
[1723290534369,1.89379,2640.2,2639.8,3.5964]
[1723290535196,1.89379,2640.2,2639.9,0.17752076]
[1723290536495,1.89365,2640.4,2639.9,0.17752076]
[1723290536653,3.78736,2640.4,2639.9,0.17752076]
[1723290536967,1.89365,2640.4,2639.9,0.17752076]
[1723290537798,3.78736,2640.4,2639.9,0.17752076]
[1723290538373,1.89365,2640.4,2639.9,0.17752076]
[1723290539364,3.0,2640.5,2639.9,2.07149076]
[1723290539548,3.0,2640.5,2640.1,2.4664]
[1723290539770,3.0,2640.5,2640.1,4.36024]
[1723290539968,3.0,2640.5,2640.2,0.17688802]
[1723290540211,1.89352,2640.6,2640.2,0.17688802]
[1723290540405,1.89359,2640.5,2640.2,0.17688802]
[1723290540709,3.678711,2640.5,2640.2,0.17688802]
[1723290540905,1.89369,2640.4,2640.2,0.17688802]
[1723290542008,1.89369,2640.4,2640.0,1.13]
[1723290542606,1.89373,2640.3,2640.1,0.1769561]
[1723290542798,1.89369,2640.4,2640.1,0.1769561]
[1723290543108,1.89379,2640.2,2640.1,0.1769561]
[1723290543411,1.89399,2640.0,2639.6,2.4664]
[1723290543615,1.89399,2640.0,2639.5,1.13]
[1723290544608,1.89406,2639.9,2639.5,1.13]
[1723290544909,3.78798,2640.0,2639.5,1.13]
[1723290545085,1.89402,2639.9,2639.5,1.13]
[1723290545274,2.309549,2640.0,2639.5,1.13]
[1723290545603,1.89399,2640.0,2639.7,1.13]
[1723290546507,1.89399,2640.0,2639.5,1.13]
[1723290546707,1.89409,2639.8,2639.5,1.13]
[1723290547410,1.8942,2639.7,2639.5,1.13]
[1723290548598,1.89409,2639.8,2639.5,1.13]
[1723290548783,3.78822,2639.8,2639.5,1.13]
[1723290549380,4.167042,2639.8,2639.5,1.13]
[1723290549880,2.4349,2639.3,2638.8,2.4757]
[1723290550070,1.89471,2639.0,2638.6,1.13]
[1723290550275,1.89454,2639.2,2638.6,1.13]
[1723290550514,2.327484,2639.2,2638.6,1.13]
[1723290550819,1.89467,2639.0,2638.6,1.13]
[1723290550987,1.13,2639.0,2638.0,2.4757]
[1723290551192,1.89498,2638.6,2638.2,1.13]
[1723290551589,1.89498,2638.6,2638.3,0.17859345]
[1723290552220,1.89505,2638.5,2638.0,2.4757]
[1723290552411,1.89505,2638.5,2638.4,0.17852528]
[1723290552716,1.89482,2638.8,2638.4,0.17852528]
[1723290552889,1.89482,2638.8,2638.2,2.4757]
[1723290553089,1.89482,2638.8,2638.5,0.17845712]
[1723290553288,0.35649,2638.9,2638.2,2.4757]
[1723290553489,0.35649,2638.9,2637.6,1.89563]
[1723290553490,1.89454,2639.2,2638.6,0.17838896]
[1723290553810,1.89426,2639.6,2638.8,2.4757]
[1723290553991,1.89426,2639.6,2638.9,0.02288897]
[1723290554313,1.89426,2639.6,2638.9,2.0957935]
[1723290554518,1.89426,2639.6,2639.1,2.4757]
[1723290554721,1.89442,2639.4,2639.0,0.17811639]
[1723290554922,1.89442,2639.4,2638.9,2.4757]
[1723290555125,1.89442,2639.4,2639.1,0.17804826]
[1723290555281,1.89442,2639.4,2638.9,2.4757]
[1723290555480,1.89444,2639.3,2639.2,0.17826398]
[1723290555803,2.273326,2639.3,2638.9,2.4757]
[1723290556119,1.89442,2639.4,2638.9,2.4757]
[1723290556286,1.89425,2639.6,2639.0,0.17840023]
[1723290556482,3.78853,2639.6,2639.0,0.17840023]
[1723290556682,1.89425,2639.6,2639.0,0.17840023]
[1723290557394,2.383675,2639.6,2639.0,0.17840023]
[1723290557922,1.89434,2639.5,2639.0,0.17840023]
[1723290559504,1.89438,2639.4,2639.0,0.17840023]
[1723290566618,3.7888,2639.4,2639.0,0.17840023]
[1723290566820,1.89457,2639.2,2639.0,0.17840023]
[1723290567000,1.89458,2639.1,2639.0,0.17840023]
[1723290567318,1.89466,2639.0,2638.8,19.56]
[1723290569229,3.78937,2639.0,2638.8,19.56]
[1723290569414,1.89466,2639.0,2638.8,19.56]
[1723290570227,1.89472,2638.9,2638.8,19.56]
[1723290570641,3.78944,2638.9,2638.8,19.56]
[1723290572318,1.89488,2638.7,2638.4,2.4568]
[1723290573247,3.78981,2638.7,2638.4,2.4568]
[1723290573452,1.89499,2638.6,2638.2,19.56]
[1723290574831,1.89499,2638.6,2638.3,0.17961883]
[1723290575209,1.89502,2638.5,2638.3,0.17961883]
[1723290575406,3.7901,2638.5,2638.3,0.17961883]
[1723290575721,1.89508,2638.4,2638.1,2.4568]
[1723290575930,1.89508,2638.4,2638.2,0.17990727]
[1723290576531,1.89515,2638.3,2638.2,0.17990727]
[1723290576948,1.89515,2638.3,2637.9,7.49]
[1723290577261,1.89515,2638.3,2638.0,0.18006102]
[1723290577546,3.79036,2638.3,2638.0,0.18006102]
[1723290577757,1.89515,2638.3,2638.0,0.18006102]
[1723290578450,1.89504,2638.5,2638.0,0.18006102]
[1723290578622,1.89504,2638.5,2638.1,2.4568]
[1723290579027,1.89504,2638.5,2638.2,0.18007541]
[1723290579449,3.79011,2638.5,2638.2,0.18007541]
[1723290579640,4.279614,2638.5,2638.2,0.18007541]
[1723290580138,2.384544,2638.5,2638.2,0.18007541]
[1723290581548,1.89509,2638.4,2638.2,0.18007541]
[1723290581955,2.384544,2638.5,2638.2,0.18007541]
[1723290582152,4.279614,2638.5,2638.2,0.18007541]
[1723290583317,1.89508,2638.4,2638.2,0.18007541]
[1723290583632,1.89504,2638.5,2638.2,0.18007541]
[1723290584445,3.0,2638.6,2638.2,0.18007541]
[1723290584618,0.73116,2638.6,2638.2,0.18007541]
[1723290584822,3.0,2638.6,2638.2,0.18007541]
[1723290585528,1.8949,2638.7,2638.2,0.18007541]
[1723290587659,3.78982,2638.7,2638.2,0.18007541]
[1723290588870,1.8949,2638.7,2638.2,0.18007541]
[1723290589658,3.78983,2638.7,2638.2,0.18007541]
[1723290589967,4.468813,2638.7,2638.3,1.131]
[1723290590126,4.468813,2638.7,2638.4,0.18023466]
[1723290591066,2.573883,2638.7,2638.4,0.18023466]
[1723290591721,1.89494,2638.6,2638.4,0.18023466]
[1723290593540,2.40127928,2638.5,2638.4,0.18023466]
[1723290593735,1.89514,2638.4,2638.1,22.0168]
[1723290593984,1.89514,2638.4,2638.2,0.1803768]
[1723290595666,1.89515,2638.3,2638.2,0.1803768]
[1723290597986,4.29633928,2638.5,2638.2,0.1803768]
[1723290598154,2.40127928,2638.5,2638.2,0.1803768]
[1723290598874,1.8951,2638.4,2638.2,0.1803768]
[1723290600257,2.40127928,2638.5,2638.2,0.1803768]
[1723290601555,1.89494,2638.6,2638.2,1.3113768]
[1723290601751,3.1677788,2638.7,2638.2,1.3113768]
[1723290601972,0.5938958,2638.7,2638.4,1.131]
[1723290602166,1.89448,2639.3,2638.7,4.19441]
[1723290602364,1.89448,2639.3,2638.8,1.31095044]
[1723290603513,1.89459,2639.1,2638.8,1.31095044]
[1723290603998,1.89472,2639.0,2638.8,0.17995044]
[1723290604154,1.89472,2639.0,2638.7,21.8596]
[1723290604354,1.89472,2639.0,2638.8,0.17994464]
[1723290604668,1.89472,2639.0,2638.7,21.8596]
[1723290604856,1.89472,2639.0,2638.9,0.1798765]
[1723290605059,1.89472,2638.9,2638.8,0.17994464]
[1723290605285,1.89472,2638.9,2638.7,21.8596]
[1723290605503,2.273497,2639.1,2638.7,21.8596]
[1723290605992,1.89475,2638.9,2638.7,21.8596]
[1723290606195,1.89475,2638.9,2638.7,19.56]
[1723290606997,4.168127,2639.1,2638.7,19.56]
[1723290607568,1.89467,2639.0,2638.7,19.56]
[1723290608004,1.89477,2638.9,2638.6,1.131]
[1723290608505,1.89487,2638.7,2638.5,19.56]
[1723290608707,1.89487,2638.7,2638.4,1.131]
[1723290609203,1.8948,2638.8,2638.4,1.131]
[1723290611505,1.8948,2638.8,2638.5,0.17985346]
[1723290612275,2.1221377,2638.9,2638.5,0.17985346]
[1723290612482,1.89477,2638.9,2638.5,0.17985346]
[1723290612678,1.8948,2638.8,2638.5,0.17985346]
[1723290614707,1.89477,2638.9,2638.5,0.17985346]
[1723290615911,3.78955,2638.9,2638.5,0.17985346]
[1723290616412,6.02546,2639.3,2638.7,2.4632]
[1723290616413,3.0,2639.3,2638.7,2.4632]
[1723290616574,3.0,2639.3,2638.9,2.4632]
[1723290616575,1.89448,2639.3,2638.9,2.4632]
[1723290616988,1.89448,2639.3,2639.0,0.17926347]
[1723290618411,1.89452,2639.2,2639.0,0.17926347]
[1723290618647,2.27342,2639.2,2639.0,0.17926347]
[1723290619111,0.3789,2639.2,2639.0,0.17926347]
[1723290619277,3.78898,2639.3,2639.0,0.17926347]
[1723290620292,1.89448,2639.3,2639.0,0.17926347]
[1723290620718,3.0,2639.4,2639.0,0.17926347]
[1723290621031,1.89441,2639.4,2639.0,0.17926347]
[1723290621318,4.89441,2639.4,2639.0,0.17926347]
[1723290621887,1.89431,2639.5,2639.1,2.4632]
[1723290622285,1.89431,2639.5,2639.2,0.17896498]
[1723290623027,3.0,2639.6,2639.2,0.17896498]
[1723290623232,5.613568,2639.6,2639.2,0.17896498]
[1723290623729,3.0,2639.6,2639.3,2.4632]
[1723290623934,1.89418,2639.7,2639.3,2.4632]
[1723290624240,1.89418,2639.7,2639.3,2.64178975]
[1723290626697,1.89422,2639.6,2639.3,2.64178975]
[1723290626898,4.89422,2639.6,2639.3,2.64178975]
[1723290630755,1.89436,2639.4,2639.3,2.64178975]
[1723290631509,1.89436,2639.4,2639.3,0.17858975]
[1723290631705,1.89436,2639.4,2638.3,1.89508]
[1723290631706,1.89458,2639.1,2638.9,2.3484]
[1723290632033,1.89465,2639.0,2638.7,2.3484]
[1723290632233,1.131,2639.3,2637.9,7.49]
[1723290632234,1.89473,2638.9,2638.4,2.3484]
[1723290632413,1.89488,2638.7,2638.4,2.3484]
[1723290634431,1.89488,2638.7,2638.3,1.131]
[1723290635513,1.89502,2638.5,2638.3,1.131]
[1723290636128,1.89502,2638.5,2638.2,2.3484]
[1723290636538,1.89494,2638.6,2638.2,2.3484]
[1723290636852,1.89502,2638.5,2638.2,2.3484]
[1723290637426,1.89502,2638.5,2638.3,1.131]
[1723290637751,0.378984,2638.6,2638.3,1.131]
[1723290638256,1.8949,2638.7,2638.3,1.131]
[1723290638419,1.89499,2638.6,2638.3,1.131]
[1723290640550,1.89475,2638.9,2638.5,1.131]
[1723290640713,1.89475,2638.9,2638.6,2.3484]
[1723290640920,2.620465,2638.9,2638.6,2.3484]
[1723290641653,1.89475,2638.9,2638.7,0.22681782]
[1723290641859,3.0,2639.0,2638.7,0.22681782]
[1723290642018,1.89473,2638.9,2638.7,0.22681782]
[1723290642744,3.0,2639.0,2638.7,0.22681782]
[1723290642946,0.489462,2639.0,2638.7,0.22681782]
[1723290643257,1.8948,2638.8,2638.7,0.22681782]
[1723290643628,1.89477,2638.9,2638.7,0.22681782]
[1723290643941,0.489462,2639.0,2638.7,0.22681782]
[1723290643942,3.489462,2639.0,2638.7,0.22681782]
[1723290644132,0.489462,2639.0,2638.7,0.22681782]
[1723290644847,2.384162,2639.0,2638.7,0.22681782]
[1723290645026,5.384162,2639.0,2638.7,0.22681782]
[1723290645232,3.489462,2639.0,2638.7,0.22681782]
[1723290645954,5.384132,2639.0,2638.7,0.22681782]
[1723290648522,1.8948,2638.8,2638.7,0.22681782]
[1723290648746,1.8948,2638.8,2638.3,3.4537]
[1723290648945,1.8948,2638.8,2638.4,0.22729422]
[1723290651967,1.89489,2638.7,2638.4,0.22729422]
[1723290653048,1.89478,2638.9,2638.4,0.22729422]
[1723290653355,1.89478,2638.9,2638.6,2.3227]
[1723290653769,1.89478,2638.9,2638.7,0.22709013]
[1723290656197,1.8948,2638.8,2638.7,0.22709013]
[1723290657677,4.279038,2638.9,2638.7,0.22709013]
[1723290657838,3.78956,2638.9,2638.5,1.131]
[1723290658039,3.78956,2638.9,2638.6,0.22709055]
[1723290658872,1.89482,2638.8,2638.6,0.22709055]
[1723290660085,1.89487,2638.7,2638.6,0.22709055]
[1723290660457,1.89487,2638.7,2638.4,2.3227]
[1723290660659,1.89487,2638.7,2638.6,0.2271485]
[1723290660859,1.89487,2638.7,2638.5,0.22721846]
[1723290661054,1.89487,2638.7,2638.6,0.2271485]
[1723290661455,1.8948,2638.8,2638.4,2.3227]
[1723290661662,1.8948,2638.8,2638.6,0.2271485]
[1723290661846,1.8948,2638.8,2638.5,0.22721846]
[1723290662278,3.78965,2638.8,2638.5,0.22721846]
[1723290662480,1.8948,2638.8,2638.5,0.22721846]
[1723290662641,3.78965,2638.8,2638.5,0.22721846]
[1723290664289,1.8948,2638.8,2638.5,0.22721846]
[1723290665053,1.8948,2638.8,2638.5,1.35821846]
[1723290666245,1.89473,2638.9,2638.5,1.35821846]
[1723290666448,1.89469,2639.0,2638.5,1.35821846]
[1723290666449,3.78939,2639.0,2638.5,1.35821846]
[1723290666883,1.89472,2638.9,2638.5,1.35821846]
[1723290667690,3.7894,2639.0,2638.6,2.3227]
[1723290667853,1.89469,2639.0,2638.6,2.3227]
[1723290668053,3.7894,2639.0,2638.7,0.22707855]
[1723290668375,1.89478,2638.9,2638.7,0.22707855]
[1723290668871,1.8948,2638.8,2638.7,0.22707855]
[1723290669274,1.8948,2638.8,2638.4,2.3037]
[1723290669275,1.89496,2638.6,2638.3,1.131]
[1723290671369,1.89496,2638.6,2638.4,0.22724207]
[1723290671784,3.78996,2638.6,2638.4,0.22724207]
[1723290671980,1.89496,2638.6,2638.4,0.22724207]
[1723290681293,3.78996,2638.6,2638.4,0.22724207]
[1723290681499,1.89496,2638.6,2638.4,0.22724207]
[1723290681685,3.78995,2638.6,2638.4,0.22724207]
[1723290681862,1.89496,2638.6,2638.4,0.22724207]
[1723290682288,1.89482,2638.8,2638.4,0.22724207]
[1723290682544,1.89482,2638.8,2638.5,3.4347]
[1723290682825,0.59383361,2638.9,2638.6,0.22722965]
[1723290683328,2.48856361,2638.9,2638.6,0.22722965]
[1723290683623,0.59383361,2638.9,2638.6,0.22722965]
[1723290683788,1.89469,2639.0,2638.6,0.22722965]
[1723290684531,1.89481,2638.8,2638.6,0.22722965]
[1723290688529,1.89487,2638.7,2638.6,0.22722965]
[1723290689008,1.89481,2638.8,2638.4,19.56]
[1723290689009,1.89497,2638.6,2638.4,19.56]
[1723290691534,1.89481,2638.8,2638.4,19.56]
[1723290692334,1.89492,2638.7,2638.4,19.56]
[1723290692692,2.3847,2639.0,2638.6,2.3518]
[1723290692693,3.7894,2639.0,2638.6,2.3518]
[1723290692893,1.89473,2638.9,2638.6,2.3518]
[1723290693095,1.8948,2638.8,2638.6,2.3518]
[1723290694618,1.84469,2639.0,2638.6,2.3518]
[1723290694809,3.7394,2639.0,2638.6,2.3518]
[1723290695225,1.84469,2639.0,2638.6,2.3518]